[Event "FIDE World Rapid-ch Open 2018"]
[White "Masrahi, Abdulrahman A"]
[Black "Belyakov, Bogdan"]
[Site "St. Petersburg"]
[Round "4.97"]
[Annotator "ChessBase"]
[Result "0-1"]
[Date "2018.12.26"]
[WhiteElo "1903"]
[BlackElo "2459"]
[PlyCount "78"]
[TimeControl "900+10"]

1. d4 {[%emt 0:0:0]} Nf6 {[%emt 0:0:0]} 2. Bf4 {[%emt 0:0:0]} g6 {[%emt 0:0:2]
} 3. e3 {[%emt 0:0:0]} Bg7 {[%emt 0:0:4]} 4. Nf3 {[%emt 0:0:0]} d6 {[%emt 0:0:5]} 5. h3 {[%emt 0:0:4]} 0-0 {[%emt 0:0:4]} 6. Be2 {[%emt 0:0:2]
} Nc6 {[%emt 0:0:6]} 7. 0-0 {[%emt 0:0:9]} e5 {[%emt 0:0:19]
} 8. Bh2 {[%emt 0:0:56]} Qe7 {[%emt 0:0:52]} 9. c4 {[%emt 0:1:10]} Ne4 {[%emt 0:0:57]
} 10. Nbd2 {[%emt 0:1:52]} exd4 {[%emt 0:1:22]} 11. exd4 {[%emt 0:0:52]
} Nxd4 {[%emt 0:1:20]} 12. Nxd4 {[%emt 0:0:57]} Bxd4 {[%emt 0:0:0]} 13. Nxe4 {[%emt 0:1:5]} Qxe4 {[%emt 0:0:0]} 14. Bf3 {[%emt 0:0:7]
} Qh4 15. Bg3 {[%emt 0:1:48]} Qf6 {[%emt 0:0:14]} 16. Qd2 {[%emt 0:0:18]} Rb8 {[%emt 0:0:50]} 17. Bd5 {[%emt 0:3:26]} Bxb2 18. Rab1 Bc3 {[%emt 0:3:1]
} 19. Qe2 {[%emt 0:0:34]} b6 {[%emt 0:0:24]} 20. f4 Bf5 21. Rb3 {[%emt 0:0:0]} Rbe8 {[%emt 0:0:17]} 22. Qf3 {[%emt 0:0:5]} Bd4+ {[%emt 0:0:3]} 23. Bf2 {[%emt 0:0:19]} Bxf2+ {[%emt 0:0:18]} 24. Rxf2 {[%emt 0:0:50]} Re1+ {[%emt 0:0:28]
} 25. Kh2 {[%emt 0:0:4]} h5 {[%emt 0:0:6]} 26. Re3 {[%emt 0:0:0]} Re8 {[%emt 0:1:2]} 27. Rfe2 {[%emt 0:0:6]} Rxe2 28. Qxe2 {[%emt 0:0:0]} Rxe3 {[%emt 0:0:28]} 29. Qxe3 Kf8 {[%emt 0:0:6]} 30. Bc6 {[%emt 0:0:0]} Be6 {[%emt 0:0:13]} 31. Qe4 {[%emt 0:0:10]} h4 {[%emt 0:0:14]} 32. Bb5 {[%emt 0:0:36]} Kg7 {[%emt 0:0:18]} 33. Bc6 {[%emt 0:0:14]} Qc3 {[%emt 0:0:10]
} 34. Bd5 {[%emt 0:0:19]} Bxd5 {[%emt 0:1:7]} 35. cxd5 {[%emt 0:0:2]
} Kf8 {[%emt 0:1:29]} 36. f5 {[%emt 0:0:25]} Qe5+ {[%emt 0:0:0]} 37. Qxe5 {[%emt 0:0:5]} dxe5 {[%emt 0:0:2]} 38. fxg6 {[%emt 0:0:18]} fxg6 {[%emt 0:0:3]} 39. g3 {[%emt 0:0:1]} b5 {[%emt 0:0:18]} 0-1

[Event "FIDE World Rapid-ch Open 2018"]
[White "Al Thebaiti, Ahmed M"]
[Black "Pogosyan, Stefan"]
[Site "St. Petersburg"]
[Round "4.98"]
[Annotator "NA"]
[Result "0-1"]
[Date "2018.12.26"]
[WhiteElo "1976"]
[BlackElo "2365"]
[PlyCount "118"]
[TimeControl "900+10"]

1. d4 {[%emt 0:0:0]} Nf6 {[%emt 0:0:0]} 2. Bf4 {[%emt 0:0:0]} d5 {[%emt 0:0:0]
} 3. e3 {[%emt 0:0:0]} c5 {[%emt 0:0:0]} 4. Nc3 {[%emt 0:0:0]} g6 {[%emt 0:1:37]} 5. Nb5 {[%emt 0:0:7]} Na6 {[%emt 0:0:3]} 6. c3 {[%emt 0:0:17]
} Bg7 {[%emt 0:0:6]} 7. Nf3 {[%emt 0:0:9]} 0-0 {[%emt 0:0:0]} 8. Be2 {[%emt 0:0:23]} Bd7 {[%emt 0:0:7]} 9. a4 {[%emt 0:0:10]} Nh5 {[%emt 0:2:16]
} 10. Bg5 {[%emt 0:0:19]} h6 {[%emt 0:0:13]} 11. Bh4 {[%emt 0:0:0]} cxd4 {[%emt 0:0:28]} 12. Nfxd4 {[%emt 0:1:37]} Nf6 {[%emt 0:0:7]} 13. 0-0 {[%emt 0:0:50]} Nc5 {[%emt 0:0:16]} 14. Nb3 {[%emt 0:1:58]} Nce4 {[%emt 0:3:47]
} 15. f3 {[%emt 0:0:22]} Ng5 {[%emt 0:0:53]} 16. Bg3 {[%emt 0:0:0]} Ne6 {[%emt 0:1:5]} 17. a5 {[%emt 0:0:43]} Bxb5 {[%emt 0:0:48]} 18. Bxb5 a6 19. Bd3 {[%emt 0:0:50]} Rc8 {[%emt 0:0:24]} 20. Bf2 {[%emt 0:0:18]} Nc5 {[%emt 0:0:35]} 21. Bc2 {[%emt 0:0:14]} e6 {[%emt 0:1:12]} 22. Qd2 {[%emt 0:0:15]
} Nxb3 {[%emt 0:0:36]} 23. Bxb3 {[%emt 0:0:3]} Rc5 {[%emt 0:0:0]} 24. c4 {[%emt 0:2:13]} dxc4 {[%emt 0:0:40]} 25. Qxd8 {[%emt 0:0:18]} Rxd8 {[%emt 0:0:5]} 26. e4 {[%emt 0:0:3]} Rcc8 {[%emt 0:0:21]} 27. Ba2 {[%emt 0:2:34]
} Rc6 {[%emt 0:1:7]} 28. Rfd1 {[%emt 0:0:30]} Rdc8 {[%emt 0:0:0]} 29. Bb6 {[%emt 0:0:34]} Nh5 {[%emt 0:0:25]} 30. Rab1 {[%emt 0:1:43]} Nf4 {[%emt 0:0:16]} 31. Rd2 {[%emt 0:1:34]} h5 {[%emt 0:1:46]} 32. g3 {[%emt 0:0:4]
} Nd3 {[%emt 0:0:24]} 33. Bxc4 {[%emt 0:0:8]} Nxb2 {[%emt 0:0:0]} 34. Bb3 {[%emt 0:0:12]} Nc4 {[%emt 0:0:11]} 35. Bxc4 {[%emt 0:0:10]} Rxc4 {[%emt 0:0:0]} 36. Rbd1 {[%emt 0:0:6]} Bf6 {[%emt 0:0:21]} 37. Rd7 {[%emt 0:0:4]
} Rc2 {[%emt 0:0:5]} 38. e5 {[%emt 0:0:48]} Bxe5 {[%emt 0:0:0]} 39. Rd8+ {[%emt 0:0:1]} Rxd8 {[%emt 0:0:3]} 40. Rxd8+ {[%emt 0:0:1]} Kg7 {[%emt 0:0:12]} 41. Rd7 {[%emt 0:0:1]} Rb2 {[%emt 0:0:26]} 42. Rxb7 {[%emt 0:0:9]
} h4 {[%emt 0:0:11]} 43. f4 {[%emt 0:0:17]} Bc3 {[%emt 0:0:9]
} 44. Ra7 {[%emt 0:0:12]} h3 {[%emt 0:0:10]} 45. Rc7 {[%emt 0:0:46]} Bf6 {[%emt 0:0:11]
} 46. g4 {[%emt 0:0:32]} Rg2+ {[%emt 0:0:3]} 47. Kh1 {[%emt 0:0:0]} Rxg4 {[%emt 0:0:3]} 48. Bf2 {[%emt 0:0:9]} Rxf4 {[%emt 0:0:6]} 49. Kg1 {[%emt 0:0:9]} Ra4 {[%emt 0:0:13]} 50. Bb6 {[%emt 0:0:6]} Be5 {[%emt 0:0:4]
} 51. Rc2 {[%emt 0:0:12]} Kh7 {[%emt 0:0:23]} 52. Bd8 Rg4+ {[%emt 0:0:15]
} 53. Kf1 {[%emt 0:0:21]} Rd4 {[%emt 0:0:4]} 54. Bb6 {[%emt 0:0:0]} Rd1+ {[%emt 0:0:2]} 55. Ke2 {[%emt 0:0:5]} Rh1 {[%emt 0:0:9]} 56. Kf3 {[%emt 0:0:5]} Rxh2 {[%emt 0:0:6]} 57. Rc8 {[%emt 0:0:17]} Ra2 {[%emt 0:0:11]
} 58. Rc1 {[%emt 0:0:19]} h2 {[%emt 0:0:4]} 59. Rh1 {[%emt 0:0:0]} f5 {[%emt 0:0:10]} 0-1

[Event "FIDE World Rapid-ch Open 2018"]
[White "khayat, Abdullah F"]
[Black "Guimaraes, Diogo Duarte"]
[Site "St. Petersburg"]
[Round "4.99"]
[Annotator "NA"]
[Result "0-1"]
[Date "2018.12.26"]
[WhiteElo "1723"]
[BlackElo "2278"]
[PlyCount "156"]
[TimeControl "900+10"]

1. Nf3 {[%emt 0:0:0]} Nf6 {[%emt 0:0:0]} 2. g3 {[%emt 0:0:0]} d5 {[%emt 0:0:0]
} 3. d4 {[%emt 0:0:0]} Bf5 {[%emt 0:0:1]} 4. Bg2 {[%emt 0:0:0]} e6 {[%emt 0:0:9]} 5. c3 {[%emt 0:0:4]} h6 {[%emt 0:0:6]} 6. 0-0 {[%emt 0:0:3]
} Be7 {[%emt 0:0:4]} 7. Re1 {[%emt 0:0:17]} 0-0 {[%emt 0:0:0]} 8. Qb3 {[%emt 0:0:12]} Qc8 {[%emt 0:0:39]} 9. Nbd2 {[%emt 0:0:8]} c5 {[%emt 0:0:6]
} 10. e3 {[%emt 0:0:28]} Nc6 {[%emt 0:0:33]} 11. a4 {[%emt 0:0:0]} Ne4 {[%emt 0:1:32]} 12. Nxe4 {[%emt 0:0:23]} Bxe4 {[%emt 0:0:2]} 13. Nd2 {[%emt 0:0:9]} Bxg2 {[%emt 0:1:30]} 14. Kxg2 {[%emt 0:0:3]} f5 {[%emt 0:0:49]
} 15. f4 {[%emt 0:0:11]} c4 {[%emt 0:0:17]} 16. Qd1 {[%emt 0:0:0]} Na5 {[%emt 0:0:3]} 17. b4 {[%emt 0:0:20]} cxb3 {[%emt 0:0:4]} 18. Nxb3 {[%emt 0:0:7]} Qxc3 {[%emt 0:0:39]} 19. Bd2 {[%emt 0:5:48]} Qxb3 {[%emt 0:6:19]
} 20. Bxa5 {[%emt 0:0:47]} Qxd1 {[%emt 0:0:3]} 21. Rexd1 {[%emt 0:0:3]
} Rfc8 {[%emt 0:0:1]} 22. Rdc1 {[%emt 0:0:7]} Kf7 {[%emt 0:0:0]} 23. Kf3 {[%emt 0:1:49]} h5 {[%emt 0:0:37]} 24. h3 {[%emt 0:0:12]} Ke8 {[%emt 0:0:55]} 25. Ke2 {[%emt 0:1:4]} Kd7 {[%emt 0:0:2]} 26. Kd3 {[%emt 0:0:11]
} b6 {[%emt 0:1:59]} 27. Bd2 {[%emt 0:0:9]} Rc6 {[%emt 0:0:0]} 28. Rxc6 {[%emt 0:0:16]} Kxc6 {[%emt 0:0:1]} 29. Rc1+ {[%emt 0:0:5]} Kb7 {[%emt 0:0:3]} 30. a5 {[%emt 0:0:12]} b5 {[%emt 0:0:41]} 31. h4 {[%emt 0:3:40]
} Rc8 {[%emt 0:0:31]} 32. a6+ {[%emt 0:0:51]} Kb8 {[%emt 0:0:0]} 33. Rb1 {[%emt 0:0:7]} Rc6 {[%emt 0:0:15]} 34. Rxb5+ {[%emt 0:0:44]} Rb6 {[%emt 0:0:1]} 35. Ra5 {[%emt 0:0:32]} Rb2 {[%emt 0:0:10]} 36. Bc3 {[%emt 0:0:27]
} Rb1 {[%emt 0:0:30]} 37. Kc2 {[%emt 0:0:4]} Rb6 {[%emt 0:0:0]} 38. Ra2 {[%emt 0:0:9]} Bb4 {[%emt 0:0:16]} 39. Bxb4 {[%emt 0:0:12]} Rxb4 {[%emt 0:0:1]} 40. Kc3 {[%emt 0:0:2]} Rb1 {[%emt 0:0:9]} 41. Ra3 {[%emt 0:0:21]
} Kc7 {[%emt 0:0:5]} 42. Kd3 {[%emt 0:0:8]} Kb6 {[%emt 0:0:0]} 43. Kc3 {[%emt 0:0:9]} Rg1 {[%emt 0:0:7]} 44. Rb3+ {[%emt 0:0:10]} Kxa6 {[%emt 0:0:2]} 45. Ra3+ {[%emt 0:0:4]} Kb6 {[%emt 0:0:3]} 46. Rb3+ {[%emt 0:0:1]
} Kc7 {[%emt 0:0:20]} 47. Ra3 {[%emt 0:0:1]} Rxg3 {[%emt 0:0:0]} 48. Rxa7+ {[%emt 0:0:15]} Kb6 {[%emt 0:0:4]} 49. Re7 {[%emt 0:0:27]} Rxe3+ {[%emt 0:0:2]} 50. Kd2 {[%emt 0:0:4]} Re4 {[%emt 0:0:1]} 51. Kd3 {[%emt 0:0:10]
} Kc6 {[%emt 0:0:2]} 52. Rxg7 {[%emt 0:0:4]} Rxf4 {[%emt 0:0:0]} 53. Ra7 {[%emt 0:0:27]} Rxh4 {[%emt 0:0:8]} 54. Ra6+ {[%emt 0:0:1]
} Kd7 {[%emt 0:0:2]} 55. Ra7+ {[%emt 0:0:0]} Kd6 {[%emt 0:0:1]} 56. Ra6+ {[%emt 0:0:2]} Ke7 {[%emt 0:0:1]} 57. Ra7+ {[%emt 0:0:1]} Kf6 {[%emt 0:0:0]} 58. Ra8 {[%emt 0:0:4]} Rh3+ {[%emt 0:0:7]} 59. Ke2 {[%emt 0:0:1]} Rh4 {[%emt 0:0:27]} 60. Ke3 {[%emt 0:0:13]} Re4+ {[%emt 0:0:2]} 61. Kd3 {[%emt 0:0:7]
} Kg5 {[%emt 0:0:0]} 62. Rg8+ {[%emt 0:0:5]} Kh4 {[%emt 0:0:0]} 63. Rg1 {[%emt 0:0:7]} f4 {[%emt 0:0:7]} 64. Rh1+ {[%emt 0:0:6]} Kg5 {[%emt 0:0:1]} 65. Rg1+ {[%emt 0:0:1]} Kh6 {[%emt 0:0:5]} 66. Rg8 {[%emt 0:0:6]
} h4 {[%emt 0:0:6]} 67. Rh8+ {[%emt 0:0:7]} Kg5 {[%emt 0:0:0]} 68. Rg8+ {[%emt 0:0:1]} Kh5 {[%emt 0:0:1]} 69. Rh8+ {[%emt 0:0:1]} Kg4 {[%emt 0:0:1]} 70. Rg8+ {[%emt 0:0:2]} Kh3 {[%emt 0:0:18]} 71. Kd2 {[%emt 0:0:12]
} f3 {[%emt 0:0:10]} 72. Rf8 {[%emt 0:0:7]} Kg2 {[%emt 0:0:0]} 73. Rg8+ {[%emt 0:0:3]} Kf1 {[%emt 0:0:5]} 74. Rh8 {[%emt 0:0:6]} f2 {[%emt 0:0:6]} 75. Rg8 {[%emt 0:0:9]} Rxd4+ {[%emt 0:0:4]} 76. Ke3 {[%emt 0:0:2]
} Re4+ {[%emt 0:0:2]} 77. Kf3 {[%emt 0:0:8]} Ke1 {[%emt 0:0:0]} 78. Rg1+ {[%emt 0:0:22]} fxg1=N+ 0-1

[Event "FIDE World Rapid-ch Open 2018"]
[White "Al Turky, Fahad A"]
[Black "Dubrovin, Robert"]
[Site "St. Petersburg"]
[Round "4.100"]
[Annotator "NA"]
[Result "0-1"]
[Date "2018.12.26"]
[WhiteElo "1836"]
[BlackElo "2220"]
[PlyCount "71"]
[TimeControl "900+10"]

1. e4 {[%emt 0:0:0]} e6 {[%emt 0:0:0]} 2. d4 {[%emt 0:0:0]} d5 {[%emt 0:0:0]} 3. exd5 {[%emt 0:0:0]} exd5 {[%emt 0:0:0]} 4. Nf3 {[%emt 0:0:2]} c5 {[%emt 0:0:4]} 5. Bb5+ {[%emt 0:0:14]} Nc6 {[%emt 0:0:11]} 6. 0-0 {[%emt 0:0:6]
} Nf6 {[%emt 0:0:21]} 7. Bg5 {[%emt 0:0:39]} Be7 {[%emt 0:0:0]} 8. Ne5 {[%emt 0:2:9]} Qb6 {[%emt 0:1:8]} 9. Bxc6+ {[%emt 0:3:5]} bxc6 {[%emt 0:0:2]} 10. dxc5 {[%emt 0:1:1]} Qxc5 {[%emt 0:3:48]} 11. Nd2 {[%emt 0:3:14]
} 0-0 {[%emt 0:0:26]} 12. Nb3 {[%emt 0:0:10]} Qb6 {[%emt 0:0:0]} 13. c4 {[%emt 0:1:32]} Be6 {[%emt 0:0:49]} 14. cxd5 {[%emt 0:0:2]} cxd5 {[%emt 0:0:34]} 15. Nd4 {[%emt 0:0:57]} Bg4 {[%emt 0:1:54]} 16. Qd3 {[%emt 0:1:50]
} Bh5 {[%emt 0:2:41]} 17. Nf5 {[%emt 0:1:5]} Rfe8 {[%emt 0:0:0]} 18. Nxe7+ {[%emt 0:1:14]} Rxe7 {[%emt 0:0:2]} 19. Bxf6 {[%emt 0:0:28]} Qxf6 {[%emt 0:0:4]} 20. Qxd5 {[%emt 0:0:21]} Rc8 {[%emt 0:0:39]} 21. Nd7 {[%emt 0:0:9]
} Qh4 {[%emt 0:0:52]} 22. Rfe1 {[%emt 0:0:11]} Bg4 {[%emt 0:0:0]} 23. Rxe7 {[%emt 0:0:9]} Qxe7 {[%emt 0:0:1]} 24. Ne5 {[%emt 0:0:2]} Be6 {[%emt 0:0:51]} 25. Qa5 {[%emt 0:0:6]} Qg5 {[%emt 0:0:54]} 26. Re1 {[%emt 0:0:18]
} f6 {[%emt 0:0:37]} 27. Qa6 {[%emt 0:0:9]} Re8 {[%emt 0:0:0]} 28. Nf3 {[%emt 0:0:4]} Qd5 {[%emt 0:0:8]} 29. Qxa7 {[%emt 0:0:18]} h5 {[%emt 0:0:15]} 30. Nd4 {[%emt 0:0:10]} Bf7 {[%emt 0:0:11]} 31. Rxe8+ {[%emt 0:0:4]
} Bxe8 {[%emt 0:0:0]} 32. h3 {[%emt 0:0:12]} Bg6 {[%emt 0:0:0]} 33. a4 {[%emt 0:0:8]} Qa2 {[%emt 0:0:3]} 34. Qb8+ {[%emt 0:0:4]} Kh7 {[%emt 0:0:2]} 35. Qb7 {[%emt 0:0:23]} Qxa4 {[%emt 0:0:13]} 36. Qb3 0-1

[Event "FIDE World Rapid-ch Open 2018"]
[White "Alsulaymi, Abdullah M"]
[Black "Perdomo, Carlos Andres"]
[Site "St. Petersburg"]
[Round "4.101"]
[Annotator "NA"]
[Result "0-1"]
[Date "2018.12.26"]
[WhiteElo "1833"]
[BlackElo "2301"]
[PlyCount "64"]
[TimeControl "900+10"]

1. e4 {[%emt 0:0:0]} c5 {[%emt 0:0:0]} 2. b4 {[%emt 0:0:0]} b6 {[%emt 0:0:0]} 3. bxc5 {[%emt 0:0:3]} bxc5 {[%emt 0:0:0]} 4. Nf3 {[%emt 0:0:6]} Bb7 {[%emt 0:0:19]} 5. Nc3 {[%emt 0:0:4]} Nc6 {[%emt 0:0:16]} 6. Bc4 {[%emt 0:0:55]
} e6 {[%emt 0:0:11]} 7. 0-0 {[%emt 0:0:36]} Na5 {[%emt 0:0:58]
} 8. Bb5 {[%emt 0:3:55]} Nf6 {[%emt 0:0:18]} 9. d3 {[%emt 0:0:20]} Be7 {[%emt 0:0:20]
} 10. Rb1 {[%emt 0:0:51]} 0-0 {[%emt 0:0:7]} 11. Bf4 {[%emt 0:0:0]} d5 {[%emt 0:1:39]} 12. exd5 {[%emt 0:0:44]} exd5 {[%emt 0:0:40]} 13. Re1 {[%emt 0:0:25]} d4 {[%emt 0:0:54]} 14. Ne4 {[%emt 0:0:34]} Bd5 {[%emt 0:0:0]} 15. Qd2 {[%emt 0:0:48]} Nc6 {[%emt 0:0:18]} 16. c4 {[%emt 0:1:12]} dxc3 {[%emt 0:0:40]} 17. Nxc3 {[%emt 0:0:3]} Bxf3 {[%emt 0:0:14]} 18. gxf3 {[%emt 0:0:4]} Nd4 {[%emt 0:0:4]} 19. Kg2 {[%emt 0:0:32]} Nh5 {[%emt 0:0:0]} 20. Bc4 {[%emt 0:1:24]} Bd6 {[%emt 0:1:2]} 21. Bg5 {[%emt 0:1:8]} Qd7 {[%emt 0:0:37]} 22. Ne4 {[%emt 0:0:40]} Kh8 {[%emt 0:0:58]} 23. Nxd6 {[%emt 0:0:46]
} Qxd6 {[%emt 0:0:1]} 24. Be7 {[%emt 0:0:4]} Qc6 {[%emt 0:0:0]} 25. Re4 {[%emt 0:1:20]} Nxf3 {[%emt 0:0:27]} 26. Kxf3 {[%emt 0:0:20]} f5 {[%emt 0:0:2]} 27. Bxf8 {[%emt 0:0:20]} Rxf8 {[%emt 0:0:4]} 28. Rg1 {[%emt 0:0:49]
} fxe4+ {[%emt 0:0:2]} 29. Ke2 {[%emt 0:0:19]} Nf4+ {[%emt 0:0:0]} 30. Kd1 {[%emt 0:0:17]} exd3 {[%emt 0:0:7]} 31. Re1 {[%emt 0:0:7]} Qa4+ {[%emt 0:0:12]} 32. Bb3 {[%emt 0:0:2]} Qd4 {[%emt 0:0:2]} 0-1